fUST/lending_fUST_20241231
["ID","MTS","AMOUNT","RATE_DAILY","PERIOD"]
[347243525,1735617039251,-500.0,0.00019726,3]
[347243526,1735617039260,-500.0,0.00019726,3]
[347243527,1735617039270,-1544.7,0.00019726,3]
[347243528,1735617039279,-500.0,0.00019726,3]
[347243529,1735617039288,-500.0,0.00019726,3]
[347243530,1735617039298,-500.0,0.00019726,3]
[347243531,1735617039307,-4501.84,0.00019726,3]
[347243532,1735617039316,-673.05,0.00019726,3]
[347243533,1735617039325,-1408.88,0.00019726,3]
[347243534,1735617039335,-636.01,0.00019726,3]
[347243535,1735617039344,-500.0,0.00019726,3]
[347243536,1735617039353,-500.0,0.00019726,3]
[347243537,1735617039362,-500.0,0.00019726,3]
[347243538,1735617039371,-990.83,0.00019726,3]
[347243539,1735617039382,-530.89,0.00019726,3]
[347243540,1735617039392,-887.39,0.00019726,3]
[347243541,1735617039401,-500.0,0.00019999,3]
[347243542,1735617039410,-500.0,0.00019999,2]
[347243543,1735617039419,-500.0,0.00019999,2]
[347243544,1735617039428,-500.0,0.00019999,2]
[347243545,1735617039437,-610.55916132,0.00019999,2]
[347243546,1735617039446,-500.0,0.00019999,2]
[347243547,1735617039455,-500.0,0.00019999,2]
[347243548,1735617039464,-500.0,0.00019999,2]
[347243549,1735617039473,-500.0,0.00019999,2]
[347243550,1735617039483,-500.0,0.00019999,2]
[347243551,1735617039492,-500.0,0.0002,3]
[347243552,1735617039501,-546.95,0.0002,3]
[347243553,1735617039511,-500.0,0.0002,3]
[347243554,1735617039520,-500.0,0.0002,3]
[347243555,1735617039529,-1582.99,0.0002,3]
[347243556,1735617039539,-500.0,0.0002,3]
[347243557,1735617039548,-405.42804351,0.0002,3]
[347243558,1735617039557,-500.0,0.0002,3]
[347243559,1735617039566,-500.0,0.0002,3]
[347243560,1735617039575,-13847.75,0.0002,3]
[347243561,1735617039584,-642.38,0.0002,3]
[347243562,1735617039594,-602.8,0.0002,3]
[347243563,1735617039604,-500.0,0.0002,3]
[347243564,1735617039614,-500.0,0.0002,3]
[347243565,1735617039623,-500.0,0.0002,3]
[347243566,1735617039632,-500.0,0.0002,3]
[347243567,1735617039642,-500.0,0.0002,3]
[347243568,1735617039650,-1544.7,0.0002,3]
[347243569,1735617039659,-500.0,0.0002,3]
[347243570,1735617039668,-500.0,0.0002,3]
[347243571,1735617039677,-500.0,0.0002,3]
[347243572,1735617039687,-4501.84,0.0002,3]
[347243573,1735617039697,-673.05,0.0002,3]
[347243574,1735617039706,-1408.88,0.0002,3]
[347243575,1735617039715,-636.01,0.0002,3]
[347243576,1735617039724,-98.57802106,0.0002,3]
[347243577,1735617039757,-401.42197894,0.0002,3]
[347243578,1735617039766,-500.0,0.0002,3]
[347243579,1735617039776,-500.0,0.0002,3]
[347243580,1735617039785,-990.83,0.0002,3]
[347243581,1735617039794,-530.89,0.0002,3]
[347243582,1735617039802,-887.39,0.0002,3]
[347243583,1735617039811,-524.473,0.0002003,2]
[347243584,1735617039821,-1005.58,0.00020237,2]
[347243585,1735617039830,-2230.97,0.00020237,3]
[347243586,1735617039840,-500.0,0.00020273,3]
[347243587,1735617039849,-546.95,0.00020273,3]
[347243588,1735617039859,-500.0,0.00020273,3]
[347243589,1735617039868,-500.0,0.00020273,3]
[347243590,1735617039878,-1582.99,0.00020273,3]
[347243591,1735617039888,-500.0,0.00020273,3]
[347243592,1735617039897,-500.0,0.00020273,3]
[347243593,1735617039907,-500.0,0.00020273,3]
[347243594,1735617039917,-1867.14986565,0.00020273,3]
[347243614,1735617043350,-471.54870839,0.00018986,2]
[347243615,1735617043360,-9605.1001284,0.00020273,3]
[347243616,1735617043373,-2375.50000595,0.00020273,3]
[347243617,1735617043383,-642.38,0.00020273,3]
[347243619,1735617043393,-602.8,0.00020273,3]
[347243621,1735617043403,-500.0,0.00020273,3]
[347243623,1735617043412,-500.0,0.00020273,3]
[347243624,1735617043422,-500.0,0.00020273,3]
[347243625,1735617043431,-500.0,0.00020273,3]
[347243626,1735617043441,-500.0,0.00020273,3]
[347243627,1735617043450,-1544.7,0.00020273,3]
[347243628,1735617043459,-500.0,0.00020273,3]
[347243629,1735617043551,-500.0,0.00020273,3]
[347243630,1735617043560,-500.0,0.00020273,3]
[347243631,1735617043570,-500.0,0.00020273,3]
[347243632,1735617043579,-4501.84,0.00020273,3]
[347243633,1735617043588,-673.05,0.00020273,3]
[347243634,1735617043597,-1408.88,0.00020273,3]
[347243635,1735617043606,-636.01,0.00020273,3]
[347243636,1735617043616,-500.0,0.00020273,3]
[347243637,1735617043625,-500.0,0.00020273,3]
[347243638,1735617043634,-500.0,0.00020273,3]
[347243639,1735617043642,-990.83,0.00020273,3]
[347243640,1735617043652,-530.89,0.00020273,3]
[347243641,1735617043661,-887.39,0.00020273,3]
[347243642,1735617043670,-150.0,0.000205,2]
[347243643,1735617043679,-1005.58,0.00020511,2]
[347243644,1735617043688,-2230.97,0.00020511,3]
[347243645,1735617043697,-165.448731,0.00020521,2]
[347243646,1735617043706,-500.0,0.00020547,3]
[347243647,1735617043715,-546.95,0.00020547,3]
[347243648,1735617043724,-500.0,0.00020547,3]
[347243649,1735617043733,-500.0,0.00020547,3]
[347243650,1735617043743,-1582.99,0.00020547,3]
[347243651,1735617043752,-500.0,0.00020547,3]
[347243652,1735617043761,-500.0,0.00020547,3]
[347243653,1735617043771,-500.0,0.00020547,3]
[347243654,1735617043780,-13847.75,0.00020547,3]
[347243655,1735617043789,-642.38,0.00020547,3]
[347243656,1735617043798,-602.8,0.00020547,3]
[347243657,1735617043807,-500.0,0.00020547,3]
[347243658,1735617043817,-500.0,0.00020547,3]
[347243659,1735617043826,-500.0,0.00020547,3]
[347243660,1735617043835,-500.0,0.00020547,3]
[347243661,1735617043845,-500.0,0.00020547,3]
[347243662,1735617043854,-1544.7,0.00020547,3]
[347243663,1735617043863,-500.0,0.00020547,3]
[347243664,1735617043872,-500.0,0.00020547,3]
[347243665,1735617043881,-500.0,0.00020547,3]
[347243666,1735617043891,-500.0,0.00020547,3]
[347243667,1735617043900,-4501.84,0.00020547,3]
[347243668,1735617043909,-673.05,0.00020547,3]
[347243669,1735617043918,-1408.88,0.00020547,3]
[347243670,1735617043928,-636.01,0.00020547,3]
[347243671,1735617043937,-500.0,0.00020547,3]
[347243672,1735617043946,-500.0,0.00020547,3]
[347243673,1735617043955,-469.79543557,0.00020547,3]
[347243674,1735617043964,-990.83,0.00020547,3]
[347243675,1735617043973,-530.89,0.00020547,3]
[347243676,1735617043983,-887.39,0.00020547,3]
[347243677,1735617043992,-1005.58,0.00020785,2]
[347243678,1735617044006,-2230.97,0.00020785,3]
[347243679,1735617044015,-163.261187,0.00020807,2]
[347243680,1735617044025,-245.36090673,0.00020821,3]
[347243681,1735617044034,-546.95,0.00020821,3]
[347243682,1735617044044,-456.13155515,0.00020821,3]
[347243683,1735617044053,-500.0,0.00020821,3]
[347243684,1735617044063,-1582.99,0.00020821,3]
[347243685,1735617044072,-500.0,0.00020821,3]
[347243686,1735617044081,-500.0,0.00020821,3]
[347243687,1735617044091,-500.0,0.00020821,3]
[347243688,1735617044100,-13847.75,0.00020821,3]
[347243689,1735617044109,-602.8,0.00020821,3]
[347243690,1735617044119,-642.38,0.00020821,3]
[347243691,1735617044128,-500.0,0.00020821,3]
[347243692,1735617044138,-500.0,0.00020821,3]
[347243693,1735617044147,-500.0,0.00020821,3]
[347243694,1735617044157,-500.0,0.00020821,3]
[347243695,1735617044166,-500.0,0.00020821,3]
[347243696,1735617044175,-1544.7,0.00020821,3]
[347243697,1735617044184,-500.0,0.00020821,3]
[347243698,1735617044194,-500.0,0.00020821,3]
[347243699,1735617044203,-500.0,0.00020821,3]
[347243700,1735617044213,-500.0,0.00020821,3]
[347243701,1735617044223,-4501.84,0.00020821,3]
[347243702,1735617044237,-673.05,0.00020821,3]
[347243703,1735617044247,-1408.88,0.00020821,3]
[347243704,1735617044256,-636.01,0.00020821,3]
[347243705,1735617044266,-500.0,0.00020821,3]
[347243706,1735617044275,-500.0,0.00020821,3]
[347243707,1735617044285,-990.83,0.00020821,3]
[347243708,1735617044294,-530.89,0.00020821,3]
[347243709,1735617044302,-887.39,0.00020821,3]
[347243710,1735617044311,-394.0,0.00020891,2]
[347243711,1735617044321,-30000.0,0.00021,2]
[347243712,1735617044330,-45030.63726243,0.00021,2]
[347243713,1735617044339,-1200.0,0.00021035,2]
[347243714,1735617044348,-1005.58,0.00021059,2]
[347243715,1735617044357,-2230.97,0.00021059,3]
[347243716,1735617044366,-500.0,0.00021073,2]
[347243717,1735617044375,-500.0,0.00021073,2]
[347243718,1735617044384,-500.0,0.00021073,2]
[347243719,1735617044394,-440.90121471,0.00021079,2]
[347243720,1735617044403,-1374.15915581,0.0002108,2]
[347243721,1735617044411,-11734.2143929,0.0002108,2]
[347243722,1735617044420,-1137814.95782468,0.0002108,10]
[347243723,1735617044550,-1106.64582112,0.0002108,10]
[347243724,1735617044571,-67.38108167,0.0002108,10]
[347243735,1735617362116,1193.2098517,0.00019178,11]
[347243736,1735617849685,525.0,0.00025,120]
[347243739,1735618134943,-163.261187,0.00013973,2]
[347243740,1735618134971,-196.6874166,0.00018289,2]
[347243741,1735618135001,-308.42699918,0.00019078,2]
[347243742,1735618135039,-151.395,0.00019177,2]
[347243743,1735618135068,-287.0,0.00019177,2]
[347243744,1735618135096,-459.62448017,0.00019178,2]
[347243745,1735618135138,-42.21571725,0.00019178,2]
[347243746,1735618135168,-160.57621716,0.00019178,2]
[347243768,1735618232126,-269.8736243,0.00019078,2]
[347243769,1735618232136,-1121.28,0.00019178,2]
[347243770,1735618232145,-500.0,0.00019178,2]
[347243771,1735618232155,-500.0,0.00019178,2]
[347243772,1735618232165,-500.0,0.00019178,2]
[347243773,1735618232174,-500.0,0.00019178,2]
[347243774,1735618232183,-500.0,0.00019178,2]
[347243775,1735618232192,-500.0,0.00019178,2]
[347243776,1735618232201,-500.0,0.00019178,2]
[347243777,1735618232210,-208.2137268,0.00019178,2]
[347243778,1735618232221,-500.0,0.00019178,2]
[347243779,1735618232230,-360.25827799,0.00019178,2]
[347243780,1735618232245,-139.74172201,0.00019178,2]
[347243781,1735618232255,-226.83759371,0.00019178,2]
[347243782,1735618232264,-4212.72509994,0.00019178,2]
[347243789,1735618238021,-864.21490006,0.00019178,2]
[347243790,1735618238031,-500.0,0.00019178,2]
[347243791,1735618238041,-500.0,0.00019178,2]
[347243792,1735618238050,-500.0,0.00019178,2]
[347243794,1735618238059,-500.0,0.00019178,2]
[347243796,1735618238068,-500.0,0.00019178,2]
[347243798,1735618238078,-500.0,0.00019178,2]
[347243799,1735618238087,-90.77132743,0.00019178,2]
[347243801,1735618238099,-409.22867257,0.00019178,2]
[347243802,1735618238108,-85.88571273,0.00019178,2]
[347243803,1735618238119,-414.11428727,0.00019178,2]
[347243805,1735618238129,-1106.53325075,0.00019178,2]
[347243807,1735618238140,-1748.90674925,0.00019178,2]
[347243808,1735618238150,-922.46,0.00019178,2]
[347243809,1735618238159,-500.0,0.00019178,2]
[347243811,1735618238168,-500.0,0.00019178,2]
[347243813,1735618238177,-1137.97,0.00019178,2]
[347243815,1735618238186,-997.96,0.00019178,2]
[347243817,1735618238195,-462.70797693,0.00019178,2]
[347243819,1735618238205,-375.79356461,0.00019178,2]
[347243821,1735618238214,-500.0,0.00019178,2]
[347243823,1735618238226,-837.99,0.00019178,2]
[347243825,1735618238235,-194.7472433,0.00019178,2]
[347243827,1735618238244,-500.0,0.00019178,2]
[347243830,1735618238262,-500.0,0.00019178,2]
[347243832,1735618238273,-516.93,0.00019178,2]
[347243834,1735618238282,-10157.09,0.00019178,2]
[347243836,1735618238291,-500.0,0.00019178,2]
[347243838,1735618238301,-500.0,0.00019178,2]
[347243840,1735618238311,-649.4,0.00019178,2]
[347243842,1735618238320,-500.0,0.00019178,2]
[347243844,1735618238331,-2470.6,0.00019178,2]
[347243846,1735618238340,-152.77,0.00019178,2]
[347243848,1735618238350,-164.9847093,0.00019178,2]
[347243850,1735618238360,-269.87362424,0.0001935,2]
[347243852,1735618238369,-1121.28,0.00019452,3]
[347243854,1735618238379,-500.0,0.00019452,3]
[347243856,1735618238389,-500.0,0.00019452,3]
[347243859,1735618238399,-500.0,0.00019452,3]
[347243861,1735618238408,-500.0,0.00019452,3]
[347243863,1735618238417,-500.0,0.00019452,3]
[347243865,1735618238427,-500.0,0.00019452,3]
[347243867,1735618238437,-500.0,0.00019452,3]
[347243869,1735618238446,-500.0,0.00019452,3]
[347243871,1735618238455,-500.0,0.00019452,3]
[347243873,1735618238465,-5076.94,0.00019452,3]
[347243875,1735618238476,-500.0,0.00019452,3]
[347243877,1735618238485,-500.0,0.00019452,3]
[347243879,1735618238495,-500.0,0.00019452,3]
[347243881,1735618238504,-500.0,0.00019452,3]
[347243883,1735618238513,-500.0,0.00019452,3]
[347243885,1735618238522,-500.0,0.00019452,3]
[347243897,1735618238650,-2855.44,0.00019452,3]
[347243898,1735618238660,-922.46,0.00019452,3]
[347243899,1735618238669,-500.0,0.00019452,3]
[347243900,1735618238678,-358.80470501,0.00019452,3]
[347243901,1735618238687,-1137.97,0.00019452,3]
[347243902,1735618238696,-997.96,0.00019452,3]
[347243903,1735618238705,-500.0,0.00019452,3]
[347243904,1735618238714,-500.0,0.00019452,3]
[347243905,1735618238725,-500.0,0.00019452,3]
[347243906,1735618238734,-516.93,0.00019452,3]
[347243907,1735618238748,-10157.09,0.00019452,3]
[347243908,1735618238757,-500.0,0.00019452,3]
[347243909,1735618238766,-649.4,0.00019452,3]
[347243910,1735618238774,-2470.6,0.00019452,3]
[347243911,1735618238785,-269.87362424,0.00019622,2]
[347243912,1735618238795,-1121.28,0.00019726,3]
[347243913,1735618238804,-500.0,0.00019726,3]
[347243914,1735618238812,-500.0,0.00019726,3]
[347243915,1735618238823,-500.0,0.00019726,3]
[347243916,1735618238833,-500.0,0.00019726,3]
[347243917,1735618238842,-500.0,0.00019726,3]
[347243918,1735618238851,-500.0,0.00019726,3]
[347243919,1735618238859,-500.0,0.00019726,3]
[347243920,1735618238869,-500.0,0.00019726,3]
[347243921,1735618238878,-500.0,0.00019726,3]
[347243922,1735618238887,-5076.94,0.00019726,3]
[347243923,1735618238896,-500.0,0.00019726,3]
[347243924,1735618238905,-500.0,0.00019726,3]
[347243925,1735618238915,-500.0,0.00019726,3]
[347243926,1735618238925,-500.0,0.00019726,3]
[347243927,1735618238934,-500.0,0.00019726,3]
[347243928,1735618238943,-1456.84780312,0.00019726,3]
[347243929,1735618238955,-355.32346046,0.00019726,3]
[347243932,1735618239910,-1043.26873642,0.00019726,3]
[347243933,1735618239920,-320.85889902,0.00019726,3]
[347243955,1735618246033,-179.14110098,0.00019726,3]
[347243956,1735618246042,-922.46,0.00019726,3]
[347243957,1735618246052,-500.0,0.00019726,3]
[347243958,1735618246061,-1137.97,0.00019726,3]
[347243959,1735618246071,-997.96,0.00019726,3]
[347243960,1735618246080,-500.0,0.00019726,3]
[347243961,1735618246090,-500.0,0.00019726,3]
[347243962,1735618246099,-500.0,0.00019726,3]
[347243963,1735618246108,-516.93,0.00019726,3]
[347243964,1735618246117,-10157.09,0.00019726,3]
[347243965,1735618246127,-500.0,0.00019726,3]
[347243966,1735618246136,-649.4,0.00019726,3]
[347243967,1735618246146,-2470.6,0.00019726,3]
[347243968,1735618246156,-269.87362424,0.00019894,2]
[347243969,1735618246166,-1121.28,0.0002,3]
[347243970,1735618246175,-500.0,0.0002,3]
[347243971,1735618246184,-500.0,0.0002,3]
[347243972,1735618246194,-500.0,0.0002,3]
[347243973,1735618246203,-500.0,0.0002,3]
[347243974,1735618246212,-500.0,0.0002,3]
[347243975,1735618246222,-500.0,0.0002,3]
[347243976,1735618246231,-340.52896116,0.0002,3]
[347243977,1735618246240,-500.0,0.0002,3]
[347243978,1735618246249,-5076.94,0.0002,3]
[347243979,1735618246259,-500.0,0.0002,3]
[347243980,1735618246268,-500.0,0.0002,3]
[347243981,1735618246278,-500.0,0.0002,3]
[347243982,1735618246287,-500.0,0.0002,3]
[347243983,1735618246296,-500.0,0.0002,3]
[347243984,1735618246306,-2855.44,0.0002,3]
[347243985,1735618246315,-500.0,0.0002,3]
[347243986,1735618246324,-922.46,0.0002,3]
[347243987,1735618246333,-500.0,0.0002,3]
[347243988,1735618246341,-1137.97,0.0002,3]
[347243989,1735618246351,-997.96,0.0002,3]
[347243990,1735618246361,-500.0,0.0002,3]
[347243991,1735618246370,-500.0,0.0002,3]
[347243992,1735618246379,-500.0,0.0002,3]
[347243993,1735618246388,-516.93,0.0002,3]
[347243994,1735618246397,-10157.09,0.0002,3]
[347243995,1735618246407,-500.0,0.0002,3]
[347243996,1735618246416,-649.4,0.0002,3]
[347243997,1735618246425,-2470.6,0.0002,3]
[347243998,1735618246435,-528.207,0.0002003,2]
[347243999,1735618246444,-269.87362424,0.00020165,2]
[347244000,1735618246453,-500.0,0.00020272,2]
[347244001,1735618246463,-200.69159421,0.00020272,2]
[347244002,1735618246472,-1121.28,0.00020273,3]
[347244003,1735618246482,-500.0,0.00020273,3]
[347244004,1735618246491,-500.0,0.00020273,3]
[347244005,1735618246500,-500.0,0.00020273,3]
[347244006,1735618246510,-500.0,0.00020273,3]
[347244007,1735618246518,-544.20426868,0.00020273,3]
[347244008,1735618246528,-500.0,0.00020273,3]
[347244009,1735618246537,-500.0,0.00020273,3]
[347244010,1735618246546,-5076.94,0.00020273,3]
[347244011,1735618246555,-595.32308315,0.00020273,3]
[347244012,1735618246564,-500.0,0.00020273,3]
[347244013,1735618246573,-500.0,0.00020273,3]
[347244014,1735618246582,-500.0,0.00020273,3]
[347244015,1735618246591,-500.0,0.00020273,3]
[347244016,1735618246600,-2855.44,0.00020273,3]
[347244017,1735618246609,-500.0,0.00020273,3]
[347244018,1735618246617,-922.46,0.00020273,3]
[347244019,1735618246627,-500.0,0.00020273,3]
[347244020,1735618246636,-1137.97,0.00020273,3]
[347244021,1735618246646,-997.96,0.00020273,3]
[347244022,1735618246655,-500.0,0.00020273,3]
[347244023,1735618246664,-500.0,0.00020273,3]
[347244024,1735618246673,-500.0,0.00020273,3]
[347244025,1735618246682,-516.93,0.00020273,3]
[347244026,1735618246691,-10157.09,0.00020273,3]
[347244027,1735618246700,-500.0,0.00020273,3]
[347244028,1735618246709,-649.4,0.00020273,3]
[347244029,1735618246718,-2470.6,0.00020273,3]
[347244030,1735618246728,-151.0,0.000204,3]
[347244031,1735618246737,-151.0,0.000205,3]
[347244032,1735618246747,-165.448731,0.00020521,2]
[347244033,1735618246759,-214.43749601,0.00020546,4]
[347244034,1735618246769,-1121.28,0.00020547,3]
[347244035,1735618246777,-500.0,0.00020547,3]
[347244036,1735618246788,-500.0,0.00020547,3]
[347244037,1735618246798,-500.0,0.00020547,3]
[347244038,1735618246807,-500.0,0.00020547,3]
[347244039,1735618246816,-500.0,0.00020547,3]
[347244040,1735618246826,-500.0,0.00020547,3]
[347244041,1735618246835,-5076.94,0.00020547,3]
[347244042,1735618246844,-500.0,0.00020547,3]
[347244043,1735618246853,-500.0,0.00020547,3]
[347244044,1735618246862,-500.0,0.00020547,3]
[347244045,1735618246871,-500.0,0.00020547,3]
[347244046,1735618246880,-2855.44,0.00020547,3]
[347244047,1735618246890,-500.0,0.00020547,3]
[347244048,1735618246899,-922.46,0.00020547,3]
[347244049,1735618246908,-500.0,0.00020547,3]
[347244050,1735618246918,-1137.97,0.00020547,3]
[347244051,1735618246927,-997.96,0.00020547,3]
[347244052,1735618246935,-500.0,0.00020547,3]
[347244053,1735618246945,-500.0,0.00020547,3]
[347244054,1735618246953,-500.0,0.00020547,3]
[347244055,1735618246963,-516.93,0.00020547,3]
[347244056,1735618246973,-2446.24477808,0.00020547,3]
[347244057,1735618246986,-2497.676774,0.00020547,3]
[347244058,1735618641281,151.17146547,0.0002108,10]
[347244062,1735619366349,-163.261187,0.00013973,2]
[347244064,1735619366375,-82.11478505,0.00018451,2]
[347244068,1735619370185,-17264.32566208,0.00018451,2]
[347244082,1735619432114,-633.04983587,0.00018451,2]
[347244083,1735619432125,-500.0,0.00019178,2]
[347244084,1735619432135,-500.0,0.00019178,2]
[347244085,1735619432147,-5.9273533,0.00019178,2]
[347244086,1735619432171,-2932.88887826,0.00019178,2]
[347244087,1735619432184,-606.84252089,0.00019178,2]
[347244164,1735619438154,-262.04124755,0.00019178,2]
[347244165,1735619438166,-500.0,0.00019178,2]
[347244166,1735619438176,-72.89699716,0.00019178,2]
[347244183,1735619440211,-289.88950242,0.00019178,2]
[347244184,1735619440222,-500.0,0.00019178,2]
[347244185,1735619440232,-500.0,0.00019178,2]
[347244186,1735619440244,-691.85,0.00019178,2]
[347244187,1735619440254,-638.09956436,0.00019178,2]
[347244188,1735619440265,-500.0,0.00019178,2]
[347244189,1735619440275,-500.0,0.00019178,2]
[347244190,1735619440286,-500.0,0.00019178,2]
[347244191,1735619440296,-500.0,0.00019178,2]
[347244192,1735619440307,-1671.64794997,0.00019178,2]
[347244207,1735619443143,-469.93205003,0.00019178,2]
[347244208,1735619443154,-500.0,0.00019178,2]
[347244209,1735619443164,-803.07,0.00019178,2]
[347244210,1735619443174,-748.47,0.00019178,2]
[347244211,1735619443184,-2063.31,0.00019178,2]
[347244212,1735619443194,-500.0,0.00019178,2]
[347244214,1735619443206,-7835.03,0.00019178,2]
[347244215,1735619443336,-500.0,0.00019178,2]
[347244216,1735619443346,-150.0,0.00019178,2]
[347244217,1735619443355,-161.92417456,0.00019352,2]
[347244218,1735619443364,-500.0,0.00019449,3]
[347244219,1735619443373,-500.0,0.00019449,3]
[347244220,1735619443382,-500.0,0.00019449,3]
[347244221,1735619443391,-853.48,0.0001945,3]
[347244222,1735619443400,-500.0,0.0001945,3]
[347244223,1735619443410,-500.0,0.0001945,3]
[347244224,1735619443419,-500.0,0.0001945,3]
[347244225,1735619443428,-500.0,0.0001945,3]
[347244226,1735619443437,-514.11,0.0001945,3]
[347244227,1735619443446,-175.38162492,0.0001945,3]
[347244228,1735619443457,-431.46089597,0.0001945,3]
[347244229,1735619443466,-500.0,0.00019451,3]
[347244230,1735619443475,-151.395,0.00019451,2]
[347244231,1735619443485,-506.11163549,0.00019451,3]
[347244232,1735619443494,-500.0,0.00019451,3]
[347244233,1735619443503,-399.44066373,0.00019451,3]
[347244234,1735619443513,-500.0,0.00019452,3]
[347244235,1735619443522,-500.0,0.00019452,3]
[347244236,1735619443531,-3807.7,0.00019452,3]
[347244237,1735619443540,-500.0,0.00019452,3]
[347244238,1735619443550,-500.0,0.00019452,3]
[347244239,1735619443559,-500.0,0.00019452,3]
[347244240,1735619443568,-691.85,0.00019452,3]
[347244241,1735619443577,-500.0,0.00019452,3]
[347244242,1735619443586,-500.0,0.00019452,3]
[347244243,1735619443595,-500.0,0.00019452,3]
[347244244,1735619443605,-500.0,0.00019452,3]
[347244245,1735619443614,-2141.58,0.00019452,3]
[347244246,1735619443623,-456.53834966,0.00019452,3]
[347244247,1735619443633,-803.07,0.00019452,2]
[347244248,1735619443642,-748.47,0.00019452,3]
[347244249,1735619443651,-2063.31,0.00019452,3]
[347244250,1735619443660,-7835.03,0.00019452,3]
[347244251,1735619443669,-500.0,0.00019723,3]
[347244252,1735619443678,-853.48,0.00019724,3]
[347244253,1735619443687,-500.0,0.00019724,3]
[347244254,1735619443696,-500.0,0.00019724,3]
[347244255,1735619443707,-500.0,0.00019724,3]
[347244256,1735619443717,-500.0,0.00019724,3]
[347244257,1735619443726,-514.11,0.00019724,3]
[347244258,1735619443735,-500.0,0.00019726,3]
[347244259,1735619443744,-500.0,0.00019726,3]
[347244260,1735619443754,-3807.7,0.00019726,3]
[347244261,1735619443763,-500.0,0.00019726,3]
[347244262,1735619443772,-500.0,0.00019726,3]
[347244263,1735619443781,-500.0,0.00019726,3]
[347244264,1735619443790,-691.85,0.00019726,3]
[347244265,1735619443799,-500.0,0.00019726,3]
[347244266,1735619443808,-500.0,0.00019726,3]
[347244267,1735619443817,-500.0,0.00019726,3]
[347244268,1735619443826,-500.0,0.00019726,3]
[347244269,1735619443835,-2141.58,0.00019726,3]
[347244270,1735619443844,-803.07,0.00019726,2]
[347244271,1735619443854,-748.47,0.00019726,3]
[347244272,1735619443863,-2063.31,0.00019726,3]
[347244273,1735619443872,-7835.03,0.00019726,3]
[347244274,1735619443881,-161.92417454,0.00019759,2]
[347244275,1735619443891,-500.0,0.00019997,3]
[347244276,1735619443900,-853.48,0.00019998,3]
[347244277,1735619443909,-500.0,0.00019998,3]
[347244278,1735619443918,-500.0,0.00019998,3]
[347244279,1735619443928,-500.0,0.00019998,3]
[347244280,1735619443937,-500.0,0.00019998,3]
[347244281,1735619443947,-514.11,0.00019998,3]
[347244282,1735619443956,-500.0,0.0002,3]
[347244283,1735619443966,-500.0,0.0002,3]
[347244284,1735619443975,-3807.7,0.0002,3]
[347244285,1735619443984,-500.0,0.0002,3]
[347244286,1735619443993,-500.0,0.0002,3]
[347244287,1735619444003,-500.0,0.0002,3]
[347244288,1735619444011,-691.85,0.0002,3]
[347244289,1735619444021,-500.0,0.0002,3]
[347244290,1735619444030,-500.0,0.0002,3]
[347244291,1735619444040,-500.0,0.0002,3]